fUSD/lending_fUSD_20241017
["ID","MTS","AMOUNT","RATE_DAILY","PERIOD"]
[340401816,1729195838855,-23900.0,0.00021936,2]
[340401817,1729195838864,-1000.0,0.00022,2]
[340401818,1729195838874,-400.9777626,0.00022117,2]
[340401819,1729195838884,-1105.3,0.00022137,30]
[340401821,1729195838894,-400.9777626,0.00022408,2]
[340401823,1729195838904,-287.42769397,0.00022472,2]
[340401824,1729195838913,-500.0,0.00022472,2]
[340401825,1729195838923,-3000.0,0.000225,2]
[340401826,1729195838933,-833.0,0.000225,5]
[340401827,1729195838942,-400.9777626,0.00022516,2]
[340401828,1729195838951,-1000.0,0.00022581,2]
[340401829,1729195838961,-182.85,0.00022635,2]
[340401830,1729195838970,-1000.0,0.000227,2]
[340401831,1729195838980,-214.886,0.000229,2]
[340401832,1729195838990,-400.9777626,0.00022948,2]
[340401833,1729195838999,-312.9,0.00023,2]
[340401834,1729195839012,-1012.98,0.00023,2]
[340401835,1729195839021,-150.0,0.00023,2]
[340401836,1729195839031,-462.299,0.00023077,2]
[340401837,1729195839040,-168.738,0.00023077,2]
[340401838,1729195839050,-400.9777626,0.00023212,2]
[340401839,1729195839060,-1318.53217814,0.000233,2]
[340401840,1729195839069,-3462.15162744,0.000233,2]
[340401841,1729195839078,-400.97776269,0.00023399,2]
[340401842,1729195839088,-1000.0,0.000234,2]
[340401843,1729195839097,-500.0,0.00023568,2]
[340401844,1729195839106,-313.995068,0.000236,2]
[340401845,1729195839115,-200.0,0.000236,8]
[340401846,1729195839125,-1101.61337569,0.0002362,2]
[340401847,1729195839134,-173.9643,0.00023694,2]
[340401848,1729195839144,-416.0,0.000237,6]
[340401849,1729195839153,-416.0,0.000237,6]
[340401850,1729195839162,-4167.0,0.000237,6]
[340401851,1729195839401,-500.0,0.000237,8]
[340401852,1729195839411,-307.08941405,0.00023783,2]
[340401853,1729195839420,-316.55,0.00023784,2]
[340401854,1729195839429,-228.92553663,0.00023794,2]
[340401855,1729195839438,-453.61364691,0.00023794,2]
[340401856,1729195839448,-1869.61563378,0.00023795,2]
[340401857,1729195839458,-8500.0,0.00023795,2]
[340401858,1729195839467,-35000.0,0.00023795,2]
[340401859,1729195839476,-5966.46053206,0.00023795,2]
[340401860,1729195839485,-2261.29905231,0.00023795,2]
[340401861,1729195839495,-800.0,0.000238,8]
[340401862,1729195839504,-150.0,0.00023844,2]
[340401863,1729195839514,-150.0,0.00023848,2]
[340401864,1729195839524,-150.0,0.00023862,2]
[340401865,1729195839533,-150.0,0.00023862,2]
[340401866,1729195839543,-150.0,0.00023862,2]
[340401867,1729195839552,-150.0,0.00023863,2]
[340401868,1729195839562,-150.0,0.00023873,2]
[340401869,1729195839571,-150.0,0.00023873,2]
[340401870,1729195839580,-150.0,0.00023874,2]
[340401871,1729195839589,-150.0,0.00023875,2]
[340401872,1729195839598,-150.0,0.00023875,2]
[340401873,1729195839608,-500.0,0.00023879,2]
[340401874,1729195839617,-235.81423767,0.00023879,2]
[340401875,1729195839633,-434.85399134,0.00023879,2]
[340401876,1729195839642,-150.0,0.0002388,2]
[340401877,1729195839651,-351435.90953315,0.0002388,2]
[340401882,1729195840140,-1493.21360508,0.0002388,2]
[340401883,1729195840197,-334.39,0.0002388,2]
[340401884,1729195840208,-319.196952,0.0002388,2]
[340401885,1729195840219,-795.2994959,0.0002388,2]
[340401886,1729195840252,-40738.66249894,0.0002388,2]
[340401887,1729195840264,-1947.98619997,0.0002388,2]
[340401888,1729195840275,-817.56783516,0.0002388,2]
[340401889,1729195840309,-5441.6051556,0.0002388,2]
[340401890,1729195840320,-5180.62575599,0.0002388,2]
[340401891,1729195840331,-1244.09212786,0.0002388,2]
[340401892,1729195840366,-83858.79049353,0.0002388,2]
[340401893,1729195840377,-1386.67303368,0.0002388,2]
[340401894,1729195840389,-2480.88,0.0002388,2]
[340401895,1729195840420,-2738.12586755,0.0002388,2]
[340401896,1729195840430,-4617.91216045,0.0002388,2]
[340401915,1729195843146,-208.73231144,0.00023783,2]
[340401916,1729195843156,-59.28960665,0.0002388,2]
[340401917,1729195843167,-1343.30806504,0.0002388,2]
[340401918,1729195843252,-4969.61134892,0.0002388,2]
[340401920,1729195846135,-167.72852134,0.00023787,2]
[340401921,1729195846145,-3075.46970169,0.0002388,2]
[340401922,1729195846156,-1299.5,0.0002388,2]
[340401924,1729195868263,500.0,0.00025,120]
[340401927,1729195921530,5431.1532518,0.0001,2]
[340401928,1729195950730,150.0,0.00023692,120]
[340401929,1729195990417,500.0,0.00025,120]
[340401930,1729195996472,500.0,0.00025,120]
[340401931,1729196001538,500.0,0.00025,120]
[340401932,1729196008237,200.0,0.00025,120]
[340401934,1729196197526,550.0,0.0001,2]
[340401940,1729196468010,500.0,0.00025,120]
[340401941,1729196590640,500.0,0.00025,120]
[340401942,1729196595819,500.0,0.00025,120]
[340401943,1729196601782,500.0,0.00025,120]
[340401944,1729196607463,200.0,0.00025,120]
[340401956,1729196726225,816.46281644,0.00023,120]
[340401960,1729196794239,158397.51864324,0.00011,15]
[340401961,1729196849141,-300.0,0.00010788,2]
[340401962,1729196849162,-3111.7248757,0.00010789,2]
[340401963,1729196852371,200.0,0.000102,3]
[340401964,1729196854963,500.0,0.000103,3]
[340401965,1729196856605,700.0,0.000104,3]
[340401966,1729196861398,-1000.0,0.000105,3]
[340401968,1729196910832,79198.75932162,0.00011,15]
[340401971,1729196924548,467.35105188,0.000145,120]
[340401988,1729197032701,-1200.0,0.000106,3]
[340401989,1729197032710,-200.0,0.000107,3]
[340401990,1729197032719,-300.0,0.00010788,2]
[340401991,1729197032731,-150.0,0.00010788,2]
[340401992,1729197032741,-2647.0622313,0.00010789,2]
[340401993,1729197032753,-2210.68138415,0.00010789,2]
[340401994,1729197032765,-734.11746341,0.00010789,2]
[340401995,1729197032777,-1076.77320475,0.00010789,2]
[340401996,1729197032790,-314.09354138,0.00010789,2]
[340401997,1729197032799,-10425.14099888,0.00010789,2]
[340401998,1729197032809,-45606.17050297,0.00010789,2]
[340401999,1729197032820,-200.0,0.000108,3]
[340402000,1729197032830,-658.0173,0.000108,2]
[340402001,1729197032840,-2500.0,0.000108,2]
[340402002,1729197032851,-500.0,0.00010873,2]
[340402003,1729197032861,-7898.49258284,0.00010899,2]
[340402004,1729197032870,-7898.49258279,0.00010899,2]
[340402005,1729197032880,-7898.49258279,0.00010899,2]
[340402006,1729197032889,-43460.39182233,0.000109,2]
[340402007,1729197032930,39599.37966081,0.00011,15]
[340402008,1729197032953,-365.35210606,0.000109,2]
[340402009,1729197032970,-3569.7731183,0.000109,2]
[340402010,1729197032981,-545.44642781,0.000109,2]
[340402011,1729197032994,-1117.22136038,0.000109,2]
[340402012,1729197033004,-261.15578167,0.000109,2]
[340402013,1729197033015,-517.85068696,0.000109,2]
[340402014,1729197033027,-7929.82408757,0.000109,2]
[340402015,1729197033038,-435.419,0.000109,2]
[340402016,1729197033058,-1182.37724129,0.000109,2]
[340402017,1729197033069,-9398.26610657,0.000109,2]
[340402026,1729197040496,-333.0,0.000109,2]
[340402067,1729197043567,-11261.49106203,0.000109,2]
[340402072,1729197067531,500.0,0.00025,120]
[340402073,1729197069824,296.22,9.916e-05,2]
[340402074,1729197075008,300.0,0.00013799,120]
[340402075,1729197075197,300.0,0.00013899,120]
[340402076,1729197075353,300.0,0.00014999,120]
[340402077,1729197075842,300.0,0.00013799,120]
[340402078,1729197076008,300.0,0.00013899,120]
[340402079,1729197076244,300.0,0.00014999,120]
[340402080,1729197076737,300.0,0.00013799,120]
[340402081,1729197076905,300.0,0.00013899,120]
[340402082,1729197077076,300.0,0.00014999,120]
[340402083,1729197082560,300.0,0.00013799,120]
[340402084,1729197082716,300.0,0.00013899,120]
[340402085,1729197082875,300.0,0.00014999,120]
[340402086,1729197133637,300.0,0.00013799,120]
[340402087,1729197133830,300.0,0.00013899,120]
[340402088,1729197133994,300.0,0.00014999,120]
[340402089,1729197134712,300.0,0.00013799,120]
[340402090,1729197134963,300.0,0.00013899,120]
[340402091,1729197135119,300.0,0.00014999,120]
[340402092,1729197136322,300.0,0.00013799,120]
[340402093,1729197147214,19799.6898304,0.00011,15]
[340402110,1729197191187,500.0,0.00025,120]
[340402111,1729197196122,538.035255,0.00025,120]
[340402112,1729197200400,500.0,0.00025,120]
[340402113,1729197206434,200.0,0.00025,120]
[340402114,1729197272606,9899.84491521,0.00011,15]
[340402116,1729197392689,4949.9224576,0.00011,15]
[340402117,1729197493298,300.0,0.00013799,120]
[340402118,1729197493496,300.0,0.00013899,120]
[340402119,1729197493644,300.0,0.00014999,120]
[340402120,1729197494231,300.0,0.00013799,120]
[340402121,1729197494394,300.0,0.00013899,120]
[340402122,1729197494594,300.0,0.00014999,120]
[340402123,1729197495103,359.58000872,0.00013799,120]
[340402124,1729197511341,2474.9612288,0.00011,15]
[340402126,1729197553051,300.0,0.00013799,120]
[340402127,1729197553239,300.0,0.00013899,120]
[340402128,1729197553408,300.0,0.00014999,120]
[340402129,1729197553886,300.0,0.00013799,120]
[340402130,1729197554059,300.0,0.00013899,120]
[340402131,1729197554434,300.0,0.00014999,120]
[340402133,1729197618413,306.35,8.47e-05,2]
[340402135,1729197627008,1237.4806144,0.00011,15]
[340402137,1729197662627,250.0,0.00010391,2]
[340402138,1729197669948,612.34462536,0.00025,120]
[340402139,1729197751174,618.7403072,0.00011,15]
[340402140,1729197791315,500.0,0.00025,120]
[340402141,1729197797847,500.0,0.00025,120]
[340402142,1729197803052,200.0,0.00025,120]
[340402143,1729197827779,1000.0,0.00010265,2]
[340402144,1729197870212,309.3701536,0.00011,15]
[340402145,1729197881772,250.0,0.00010228,2]
[340402163,1729197992821,154.6850768,0.00011,15]
[340402164,1729198002051,550.0,0.0001,2]
[340402165,1729198033440,300.0,0.00013799,120]
[340402166,1729198033600,300.0,0.00014999,120]
[340402167,1729198034295,300.0,0.00013799,120]
[340402168,1729198034433,300.0,0.00014999,120]
[340402169,1729198036447,-164.07,0.00010634,2]
[340402170,1729198036466,-963.40379024,0.000107,2]
[340402171,1729198092352,300.0,0.00013799,120]
[340402172,1729198092700,300.0,0.00014999,120]
[340402174,1729198107106,9713.18599062,0.0001098,15]
[340402175,1729198151432,291.03,8.351e-05,2]
[340402178,1729198185747,166.33,0.00010258,2]
[340402179,1729198190071,250.0,0.00010258,2]
[340402180,1729198231559,-291.03,0.00010615,2]
[340402181,1729198231568,-327.145,0.00010634,2]
[340402182,1729198231578,-82.825,0.00010634,2]
[340402183,1729198231674,-67.175,0.00010634,2]
[340402184,1729198231684,-267.878978,0.00010766,2]
[340402185,1729198231782,-32.121022,0.00010766,2]
[340402186,1729198231791,-150.0,0.00010767,2]
[340402187,1729198231801,-132.948978,0.00010767,2]
[340402188,1729198231811,-535.64106233,0.00010767,2]
[340402192,1729198237635,-538.80466027,0.00010767,2]
[340402193,1729198237647,-3740.7152994,0.00010767,2]
[340402194,1729198237657,-442.0,0.00010781,2]
[340402195,1729198237666,-369.839,0.00010799,2]
[340402196,1729198237676,-150.0,0.00010799,2]
[340402197,1729198237687,-16243.5075,0.000108,2]
[340402198,1729198237697,-500.0,0.000108,2]
[340402199,1729198237707,-1000.0,0.000108,2]
[340402200,1729198237716,-1116.0346,0.000108,2]
[340402201,1729198237725,-214.886,0.000108,2]
[340402202,1729198237735,-2500.0,0.000108,2]
[340402203,1729198237744,-7294.01116686,0.00010899,2]
[340402204,1729198237755,-7294.01116679,0.00010899,2]
[340402205,1729198237764,-1423.54696346,0.00010899,2]
[340402206,1729198237896,-5870.46420333,0.00010899,2]
[340402207,1729198237905,-3525.3201554,0.00010899,2]
[340402208,1729198237925,-3768.69101139,0.00010899,2]
[340402209,1729198237936,-7120.64435562,0.00010899,2]
[340402210,1729198237948,-173.36681117,0.00010899,2]
[340402211,1729198237960,-555.80836286,0.000109,2]
[340402212,1729198237971,-475.82133345,0.000109,2]
[340402221,1729198239528,-12277.84948,0.000109,2]
[340402222,1729198239539,-493.66044482,0.000109,2]
[340402223,1729198239592,-94484.30194862,0.000109,2]
[340402224,1729198239604,-2080.25724065,0.000109,2]
[340402225,1729198239648,-432.31164817,0.000109,2]
[340402226,1729198239661,-555.54144089,0.000109,2]
[340402227,1729198239672,-5307.9,0.000109,2]
[340402228,1729198239684,-711.24,0.000109,2]
[340402229,1729198239712,-87969.03584587,0.000109,2]
[340402230,1729198239723,-167.72852133,0.000109,2]
[340402231,1729198239733,-172.93282298,0.000109,2]
[340402232,1729198239744,-3100.896,0.000109,2]
[340402233,1729198239754,-7294.01116679,0.000109,2]
[340402234,1729198239763,-162.14876678,0.000109,2]
[340402235,1729198239773,-235.44650192,0.000109,2]
[340402236,1729198239782,-162.14876673,0.000109,2]
[340402237,1729198239791,-162.14876673,0.000109,2]
[340402238,1729198239800,-162.14876673,0.000109,2]
[340402239,1729198239809,-767.25526173,0.000109,2]
[340402240,1729198239819,-162.14876673,0.000109,2]
[340402242,1729198239828,-162.14876673,0.000109,2]
[340402244,1729198239837,-6951.91089351,0.000109,2]
[340402246,1729198239846,-7294.01116679,0.0001092,2]
[340402248,1729198239855,-7294.01116679,0.0001094,2]
[340402250,1729198239864,-235.44650192,0.00010948,2]
[340402252,1729198239873,-767.25526171,0.00010948,2]
[340402254,1729198239882,-154.63,0.00010959,2]
[340402256,1729198239892,-162.36,0.00010959,2]
[340402258,1729198239901,-159.76,0.00010959,2]
[340402260,1729198239911,-4079.03,0.00010959,2]
[340402262,1729198239920,-250.0,0.00010959,2]
[340402264,1729198239929,-154.61,0.00010959,2]
[340402266,1729198239938,-672.7132,0.00010959,2]
[340402268,1729198239947,-7294.01116679,0.0001096,2]
[340402270,1729198239956,-500.0,0.00010973,2]
[340402272,1729198239965,-500.0,0.00010973,2]
[340402274,1729198239974,-505.36067579,0.00010973,2]
[340402276,1729198239984,-414.50613062,0.00010976,2]
[340402278,1729198239993,-500.0,0.00010979,2]
[340402280,1729198240004,-500.0,0.00010979,2]
[340402282,1729198240013,-447.98514013,0.00010979,2]
[340402284,1729198240023,-7294.01116679,0.0001098,2]
[340402286,1729198240032,-499.99,0.0001099,2]
[340402288,1729198240041,-196.88204439,0.0001099,2]
[340402290,1729198240050,-196.88204439,0.0001099,2]
[340402292,1729198240059,-196.88204439,0.0001099,2]
[340402294,1729198240068,-235.44650192,0.00010996,2]
[340402296,1729198240077,-767.25526171,0.00010996,2]
[340402298,1729198240086,-367.287666,0.00010999,2]
[340402299,1729198240095,-500.0,0.00010999,2]
[340402301,1729198240105,-217.40190773,0.00010999,2]
[340402303,1729198240114,-196.99386361,0.00011,2]
[340402305,1729198240123,-4095920.54165941,0.00011,2]
[340402307,1729198240135,-1618.86926637,0.00011,2]
[340402370,1729198245771,-500.0,0.000109,2]
[340402372,1729198350503,4856.59299532,0.00011,15]
[340402373,1729198390193,468.27239,0.00025,120]
[340402374,1729198396086,500.0,0.00025,120]
[340402375,1729198401701,200.0,0.00025,120]
[340402379,1729198473229,42376.28540605,0.00011,15]
[340402380,1729198513479,-394.272155,0.00010461,2]
[340402381,1729198514155,300.0,0.00013799,120]
[340402382,1729198514349,300.0,0.00013899,120]
[340402383,1729198514511,300.0,0.00014999,120]
[340402384,1729198515019,300.0,0.00013799,120]
[340402385,1729198515178,300.0,0.00013899,120]
[340402386,1729198515335,300.0,0.00014999,120]
[340402387,1729198587122,21188.14270303,0.00011,15]
[340402388,1729198678687,277.64,8.887e-05,2]
[340402389,1729198707681,10594.07135151,0.00011,15]
[340402392,1729198827320,5297.03567576,0.00011,15]
[340402393,1729198839033,-330.0647,0.00010415,2]
[340402396,1729198947078,2648.51783788,0.00011,15]
[340402397,1729198948963,-150.0,0.0001049,2]
[340402398,1729198992192,300.0,0.00013799,120]
[340402399,1729198992341,300.0,0.00013899,120]
[340402400,1729198992494,300.0,0.00014999,120]
[340402401,1729198997877,500.0,0.00025,120]
[340402402,1729199002851,200.0,0.00025,120]
[340402403,1729199052748,300.0,0.00013799,120]
[340402404,1729199052901,300.0,0.00013899,120]
[340402405,1729199072700,1324.25891894,0.00011,15]
[340402407,1729199104346,-1762.399701,0.00010452,2]
[340402408,1729199130293,-150.0,0.00010493,2]
[340402409,1729199177878,263.75,8.628e-05,2]
[340402410,1729199187161,662.12945947,0.00011,15]
[340402411,1729199253103,-718.73968401,0.00010415,2]
[340402412,1729199253123,-500.0,0.00010505,2]
[340402413,1729199253142,-500.0,0.00010505,2]
[340402414,1729199253162,-718.73968401,0.00010508,2]
[340402415,1729199253183,-300.0,0.00010514,2]
[340402416,1729199253204,-300.0,0.00010514,2]
[340402417,1729199253227,-2345.95896294,0.00010515,2]
[340402419,1729199312635,331.06472973,0.00011,15]
[340402420,1729199329734,166.33,9.852e-05,2]
[340402422,1729199338887,-1024.4107,0.00010405,2]
[340402424,1729199397448,250.0,9.853e-05,2]
[340402425,1729199424851,151.06,9.93e-05,2]
[340402426,1729199427071,165.53236487,0.00011,15]
[340402436,1729199431760,-849.36959246,0.00010585,2]
[340402439,1729199431772,-941.81996473,0.00010585,2]
[340402441,1729199431781,-250.0,0.00010608,2]
[340402443,1729199431790,-150.0,0.00010685,2]
[340402445,1729199431799,-150.0,0.00010693,2]
[340402447,1729199431810,-150.0,0.00010693,2]
[340402449,1729199431819,-8459.40713987,0.000107,2]
[340402451,1729199431835,-898.95103606,0.000107,2]
[340402454,1729199431846,-1425.76150624,0.000107,2]
[340402456,1729199431858,-397.46120767,0.000107,2]
[340402459,1729199431876,-663.67270921,0.000107,2]
[340402461,1729199431887,-12054.74640095,0.000107,2]
[340402463,1729199431896,-150.0,0.00010702,2]
[340402465,1729199431905,-150.0,0.00010703,2]
[340402467,1729199431914,-150.0,0.00010707,2]
[340402469,1729199431923,-150.0,0.00010709,2]
[340402471,1729199431932,-150.0,0.00010713,2]
[340402472,1729199431941,-150.0,0.00010714,2]
[340402473,1729199431950,-150.0,0.00010716,2]
[340402474,1729199431959,-150.0,0.00010717,2]
[340402475,1729199431968,-150.0,0.00010725,2]
[340402476,1729199431977,-150.0,0.00010725,2]
[340402477,1729199431985,-150.0,0.00010741,2]
[340402478,1729199431995,-150.0,0.00010741,2]
[340402479,1729199432004,-150.0,0.00010746,2]
[340402480,1729199432012,-150.0,0.00010751,2]
[340402481,1729199432022,-150.0,0.00010753,2]
[340402482,1729199432032,-150.0,0.00010759,2]
[340402483,1729199432041,-150.0,0.00010771,2]
[340402484,1729199432049,-150.0,0.00010773,2]
[340402485,1729199432059,-150.0,0.00010775,2]
[340402486,1729199432068,-150.0,0.00010777,2]
[340402487,1729199432077,-150.0,0.00010782,2]
[340402488,1729199432087,-150.0,0.00010783,2]
[340402489,1729199432096,-150.0,0.00010786,2]
[340402490,1729199432104,-150.0,0.00010786,2]
[340402491,1729199432114,-150.0,0.00010794,2]
[340402492,1729199432122,-48.55930711,0.000108,2]
[340402493,1729199432134,-464.76479289,0.000108,2]
[340402494,1729199432142,-1620.01020711,0.000108,2]
[340402495,1729199432153,-1362.38424677,0.000108,2]
[340402497,1729199432174,-608.34396347,0.000108,2]
[340402499,1729199432185,-1303.27384699,0.000108,2]
[340402500,1729199432195,-741.7305414,0.000108,2]
[340402501,1729199432210,-6236.81216735,0.000108,2]
[340402502,1729199432221,-3234.17575356,0.000108,2]
[340402503,1729199432231,-563.10986677,0.000108,2]
[340402504,1729199432242,-1682.31276623,0.000108,2]
[340402536,1729199440390,-1504.88906443,0.000108,2]
[340402539,1729199442813,-9420.67783669,0.000108,2]
[340402540,1729199442825,-2644.28622604,0.000108,2]
[340402541,1729199443083,-13392.93411319,0.000108,2]
[340402542,1729199443094,-1000.0,0.000108,2]
[340402543,1729199443104,-150.0,0.00010801,2]
[340402544,1729199443114,-150.0,0.00010804,2]
[340402545,1729199443124,-150.0,0.00010814,2]
[340402546,1729199443134,-150.0,0.0001082,2]
[340402547,1729199443144,-30.25648565,0.0001082,2]
[340402557,1729199471789,300.0,0.00013799,120]
[340402558,1729199471945,300.0,0.00013899,120]
[340402568,1729199474055,250.0,9.904e-05,2]
[340402569,1729199497419,153.98,9.904e-05,2]
[340402570,1729199497649,153.98,9.907e-05,2]
[340402571,1729199497937,153.98,9.91e-05,2]
[340402572,1729199498128,153.98,9.913e-05,2]
[340402573,1729199498551,153.98,9.916e-05,2]
[340402574,1729199499002,153.98,9.919e-05,2]
[340402575,1729199499255,153.98,9.922e-05,2]
[340402576,1729199499470,153.98,9.925e-05,2]
[340402577,1729199499676,153.98,9.928e-05,2]
[340402578,1729199499932,153.98,9.931e-05,2]
[340402579,1729199500162,153.98,9.935e-05,2]
[340402580,1729199500423,153.98,9.938e-05,2]
[340402581,1729199500685,153.98,9.941e-05,2]
[340402582,1729199500936,153.98,9.944e-05,2]
[340402583,1729199501172,153.98,9.947e-05,2]
[340402584,1729199501428,153.98,9.95e-05,2]
[340402585,1729199501642,153.98,9.953e-05,2]
[340402586,1729199550474,165.53236486,0.00011,15]
[340402587,1729199592004,-300.0,0.00010507,2]
[340402588,1729199592025,-11418.5395,0.00010508,2]
[340402589,1729199592047,-119.74351435,0.0001082,2]
[340402590,1729199592069,-150.0,0.00010822,2]
[340402591,1729199592090,-150.0,0.00010825,2]
[340402592,1729199592113,-150.0,0.00010825,2]
[340402593,1729199592136,-150.0,0.0001083,2]
[340402594,1729199592158,-150.0,0.00010832,2]
[340402595,1729199592183,-150.0,0.00010836,2]
[340402596,1729199592206,-150.0,0.00010837,2]
[340402597,1729199592228,-150.0,0.00010838,2]
[340402598,1729199592250,-150.0,0.00010839,2]
[340402599,1729199592275,-150.0,0.00010841,2]
[340402600,1729199592296,-150.0,0.00010841,2]
[340402601,1729199592317,-150.0,0.00010841,2]
[340402602,1729199592341,-150.0,0.00010842,2]
[340402603,1729199592367,-150.0,0.00010845,2]
[340402604,1729199592392,-150.0,0.0001085,2]
[340402605,1729199592420,-150.0,0.0001085,2]
[340402606,1729199592444,-150.0,0.00010851,2]
[340402607,1729199592466,-150.0,0.00010853,2]
[340402608,1729199592488,-150.0,0.00010855,2]
[340402609,1729199592511,-150.0,0.00010859,2]
[340402610,1729199592535,-150.0,0.00010863,2]
[340402611,1729199592559,-150.0,0.00010863,2]
[340402612,1729199592582,-150.0,0.00010867,2]
[340402613,1729199592605,-150.0,0.00010868,2]
[340402614,1729199592627,-150.0,0.0001087,2]
[340402615,1729199592651,-150.0,0.0001087,2]
[340402616,1729199592673,-150.0,0.00010872,2]
[340402617,1729199592696,-150.0,0.00010875,2]
[340402618,1729199592718,-150.0,0.00010875,2]
[340402619,1729199592743,-150.0,0.00010888,2]
[340402620,1729199592766,-263.75,0.00010892,2]
[340402621,1729199592787,-150.0,0.00010893,2]
[340402622,1729199592809,-150.0,0.00010894,2]
[340402623,1729199592830,-150.0,0.00010894,2]
[340402624,1729199592853,-150.0,0.00010898,2]
[340402625,1729199592877,-150.0,0.00010899,2]
[340402626,1729199592903,-500.0,0.000109,2]
[340402627,1729199592925,-357.0158,0.000109,2]
[340402628,1729199592945,-157.97960834,0.000109,2]
[340402629,1729199592966,-2128.6028,0.000109,2]
[340402630,1729199592987,-550.9499,0.000109,2]
[340402631,1729199593006,-2605.3109,0.000109,2]
[340402632,1729199593026,-499.99,0.000109,2]
[340402633,1729199593045,-214.1138,0.000109,2]
[340402634,1729199593066,-2711.4745,0.000109,2]
[340402635,1729199593086,-1000.0,0.000109,2]
[340402636,1729199593109,-284.28134631,0.000109,2]
[340402637,1729199593129,-429.30959146,0.000109,2]
[340402638,1729199593150,-186.0241108,0.000109,2]
[340402639,1729199593170,-958.01629594,0.000109,2]
[340402640,1729199593189,-649.14518274,0.000109,2]
[340402641,1729199593210,-1000.0,0.000109,2]
[340402642,1729199593230,-2500.0,0.000109,2]
[340402643,1729199593251,-220.60246218,0.000109,2]
[340402644,1729199593271,-160.1453237,0.000109,2]
[340402645,1729199593292,-150.0,0.00010902,2]
[340402646,1729199593314,-150.0,0.00010903,2]
[340402647,1729199593336,-150.0,0.00010905,2]
[340402648,1729199593357,-150.0,0.0001091,2]
[340402649,1729199593379,-150.0,0.0001091,2]
[340402650,1729199593400,-150.0,0.00010914,2]
[340402651,1729199593421,-150.0,0.00010926,2]
[340402652,1729199593443,-150.0,0.00010927,2]
[340402653,1729199593465,-150.0,0.00010935,2]
[340402654,1729199593486,-150.0,0.00010938,2]
[340402655,1729199593507,-150.0,0.00010938,2]
[340402656,1729199593529,-150.0,0.0001094,2]
[340402657,1729199593550,-150.0,0.00010943,2]
[340402658,1729199593572,-150.0,0.0001095,2]
[340402659,1729199593594,-150.0,0.00010956,2]
[340402660,1729199593616,-150.0,0.00010957,2]
[340402661,1729199593637,-160.7,0.00010959,2]
[340402662,1729199593658,-154.63,0.00010959,2]
[340402663,1729199593678,-814.39,0.00010959,2]
[340402664,1729199593698,-250.0,0.00010959,2]
[340402665,1729199593718,-161.26,0.00010959,2]
[340402666,1729199593738,-500.0,0.00010973,2]
[340402667,1729199593758,-500.0,0.00010973,2]
[340402668,1729199593778,-800.0,0.00010978,2]
[340402669,1729199593799,-1682.18238716,0.00010999,2]
[340402670,1729199593820,-153.86465281,0.00010999,2]
[340402671,1729199593843,-269.74015614,0.00010999,2]
[340402672,1729199593871,-8888984.52290424,0.00011,2]
[340402673,1729199593898,-2612953.30734618,0.00011,2]
[340402674,1729199593919,-5000.0,0.00011,2]